Workbook

Sheet Лист1
A1: район | B1: Учреждение | C1: Количество детей по муниципальному заданию | J1: Общее количество сотрудников | K1: Кол-во сотрудников, имеющие высшую и первую кв.кактегории | M1: балл | O1: Количество педагогов, ставших победителями и призерами в профессиональных конкурсах | AC1: Выступление педагогов на семинарах, конференциях + публикации в газетах, журналах, СМИ | AQ1: Методические семинары, конференции, проводимые на базе учреждения | BE1: Руководитель ГМО | BG1: Участие ОО в конкурсах ОО | BO1: Грантовая активность (указывать количество конкурсов) | BS1: Доступность и открытость (есть/нет) | BX1: Безопасные условия (да/нет) | CB1: Обеспечение образовательного процесса | CK1: Количество выпускников, поступивших в профильные ВУЗы, ССУЗы | CN1: Результаты обучающихся | DB1: Городские мероприятия | DX1: Эффективность управления
C2: младший возраст (6/7-10 лет, 1-4 класс) | D2: доля | E2: средний возраст (11-15 лет, 5-9 класс) | F2: доля | G2: старший возраст (16-18 лет, 10-11 класс) | H2: доля | I2: общее количество детей | L2: доля | N2: место | O2: городской | P2: доля | Q2: балл | R2: Республиканский | S2: доля | T2: балл | U2: Всероссийский | V2: доля | W2: балл | X2: Международный | Y2: доля | Z2: балл | AA2: балл | AB2: место | AC2: городской | AD2: доля | AE2: балл | AF2: Республиканский | AG2: доля | AH2: балл | AI2: Всероссийский | AJ2: доля | AK2: балл | AL2: Международный | AM2: доля | AN2: балл | AO2: балл | AP2: место | AQ2: городской | AR2: доля | AS2: балл | AT2: Республиканский | AU2: доля | AV2: балл | AW2: Всероссийский | AX2: доля | AY2: балл | AZ2: Международный | BA2: доля | BB2: балл | BC2: балл | BD2: место | BF2: место | BG2: Городской, республиканский | BH2: балл | BI2: Всероссийский | BJ2: балл | BK2: Международный | BL2: балл | BM2: балл | BN2: место | BO2: Учреждения | BP2: Педагогов | BQ2: балл | BR2: место | BS2: Наличие публичного отчета | BT2: Наличие финансового отчета | BU2: Наличие оперативной информации | BV2: балл | BW2: место | BX2: Налииче детского травматизма | BY2: Наличие взрослого травматизма | BZ2: балл | CA2: место | CB2: Кол-во детей-инвалидов, ОВЗ | CC2: доля | CD2: балл | CE2: Количество реализуемых адаптированных программ для детей с ОВЗ, детей-инвалидов | CF2: балл | CG2: Количество обучающихся по предпрофессиональным программам | CH2: Количество реализуемых предпрофессиональных программ | CI2: балл | CJ2: место | CL2: балл | CM2: место | CN2: городской | CO2: доля | CP2: балл | CQ2: Республиканский | CR2: доля | CS2: балл | CT2: Всероссийский | CU2: доля | CV2: балл | CW2: Международный | CX2: доля | CY2: балл | CZ2: балл | DA2: место | DB2: НВП | DC2: 9 Мая | DD2: День защиты детей | DE2: Сабантуй | DF2: Большая перемена | DG2: Открытие и закрытие олимпиад | DH2: Новый год | DI2: день города и РТ | DJ2: Стипендиаты Мэра | DK2: Новые имена | DL2: Иные городские мероприятия | DM2: балл | DN2: Организация и проведение мероприятий самим учреждением (р., г., респ., вс.) | DO2: район балл | DP2: город балл | DQ2: респ балл | DR2: всерос балл | DS2: балл | DT2: место | DU2: Объем средств, привлеченных за счет оказания платных услуг | DV2: балл | DW2: место | DX2: Наличие жалоб | DY2: Наличие дисциплинарных взысканий | DZ2: балл | EA2: место | EB2: итоговые баллы | ED2: итоговое место
A4: Ново-Савиновский | B4: МБУ ДО "ДХШ №3" | D4: =C4*100/I4 -> 0.00 | E4: 242 | F4: =E4*100/I4 -> 82.88 | G4: 50 | H4: =G4*100/I4 -> 17.12 | I4: =SUM(C4,E4,G4) -> 292 | J4: 14 | K4: 9 | L4: =K4*100/J4 -> 64 | M4: 3 | N4: 1 | O4: 8 | P4: =O4*100/J4 -> 57.14 | Q4: =P4*2 -> 114.29 | R4: 8 | S4: =R4*100/J4 -> 57.14 | T4: =S4*2 -> 114.29 | U4: 4 | V4: =U4*100/J4 -> 28.57 | W4: =V4*3 -> 85.71 | X4: 0 | Y4: =X4*100/J4 -> 0.00 | Z4: =Y4*3 -> 0.00 | AA4: =Q4+T4+W4+Z4 -> 314 | AB4: 1 | AC4: 3 | AD4: =AC4*100/J4 -> 21.43 | AE4: =AD4*2 -> 42.86 | AF4: 16 | AG4: =AF4*100/J4 -> 114.29 | AH4: =AG4*2 -> 228.57 | AI4: 3 | AJ4: =AI4*100/J4 -> 21.43 | AK4: =AJ4*3 -> 64.29 | AL4: 3 | AM4: =AL4*100/J4 -> 21.43 | AN4: =AM4*3 -> 64.29 | AO4: =AE4+AH4+AK4+AN4 -> 400 | AP4: 5 | AR4: =AQ4*100/J4 -> 0.00 | AS4: =AR4*2 -> 0.00 | AT4: 2 | AU4: =AT4*100/J4 -> 14.29 | AV4: =AU4*2 -> 28.57 | AX4: =AW4*100/J4 -> 0.00 | AY4: =AX4*3 -> 0.00 | AZ4: 0 | BA4: =AZ4*100/J4 -> 0.00 | BB4: =BA4*3 -> 0.00 | BC4: =AS4+AV4+AY4+BB4 -> 29 | BD4: 2 | BE4: 5 | BF4: 1 | BH4: =BG4*2 -> 0 | BJ4: =BI4*3 -> 0 | BK4: 0 | BL4: =BK4*4 -> 0 | BM4: =BH4+BJ4+BL4 -> 0 | BN4: 1 | BQ4: 4 | BR4: 1 | BS4: 1 | BT4: 1 | BU4: 1 | BV4: =BS4+BT4+BU4 -> 3 | BW4: 1 | BX4: 0 | BY4: 0 | BZ4: 0 | CA4: 1 | CB4: 0 | CC4: =CB4*100/I4 -> 0 | CD4: 2 | CE4: 0 | CF4: 1 | CG4: 292 | CH4: 1 | CI4: =CD4+CF4 -> 3 | CJ4: 2 | CK4: 10 | CL4: 5 | CM4: 1 | CN4: 81 | CO4: =CN4*100/I4 -> 27.73972603 | CP4: =CO4*2 -> 55.48 | CQ4: 54 | CR4: =CQ4*100/I4 -> 18.49 | CS4: =CR4*2 -> 36.99 | CT4: 47 | CU4: =CT4*100/I4 -> 16.10 | CV4: =CU4*3 -> 48.29 | CW4: 5 | CX4: =CW4*100/I4 -> 1.71 | CY4: =CX4*3 -> 5.14 | CZ4: =CP4+CS4+CV4+CY4 -> 145.89 | DA4: 1 | DB4: 5 | DD4: 5 | DE4: 5 | DF4: 0 | DG4: 0 | DH4: 5 | DI4: 5 | DJ4: 5 | DK4: 0 | DL4: 14 | DM4: 4 | DN4: р2, респ4, | DO4: 7 | DP4: 10 | DQ4: 6 | DR4: 8 | DS4: =DB4+DC4+DD4+DE4+DF4+DG4+DH4+DI4+DJ4+DK4+DM4 -> 34 | DT4: 6 | DU4: 3532436 | DV4: 3 | DW4: 2 | DX4: 5 | DY4: 5 | DZ4: =DY4+DX4 -> 10 | EA4: 1 | EB4: =M4+AA4+AO4+BC4+BE4+BM4+BQ4+BV4+BZ4+CI4+CL4+CZ4+DS4+DV4+DZ4 -> 959 | EC4: 1 | ED4: =N4+AB4+AP4+BD4+BF4+BN4+BR4+BW4+CA4+CJ4+CM4+DA4+DT4+DW4+EA4 -> 27
C7: ПРИМЕЧАНИЕ! ЗАПОЛНЯТЬ ТОЛЬКО ЗЕЛЕНЫЕ ЯЧЕЙКИ! ОСТАЛЬНЫЕ НЕ ТРОГАТЬ.
DA8: ПРИМЕЧАНИЕ! ЗАПОЛНЯТЬ ТОЛЬКО ЗЕЛЕНЫЕ ЯЧЕЙКИ! ОСТАЛЬНЫЕ НЕ ТРОГАТЬ.
